[Event "46th OKU-A 2019"]
[Site "Utrecht"]
[Date "2019.05.31"]
[Round "1.2"]
[White "Ercan, Selman"]
[Black "Ten Hertog, Hugo"]
[Result "0-1"]
[ECO "A40"]
[WhiteElo "2060"]
[BlackElo "2480"]
[Annotator "RC"]
[PlyCount "74"]
[EventDate "2019.05.31"]
[EventType "swiss"]
[EventCountry "NED"]
[SourceTitle "playchess.com"]
[Source "ChessBase"]
[SourceQuality "1"]
[TimeControl "6600+10"]

1. d4 {[%emt 0:00:00]} g6 {[%emt 0:00:00]} 2. c4 {[%emt 0:00:16]} Bg7 {[%emt 0:00:00]} 3. e4 {[%emt 0:01:15]} e6 {[%emt 0:00:07]} 4. Nc3 {[%emt 0:00:30]} Ne7 {[%emt 0:00:04]} 5. Bg5 {[%emt 0:07:06]} h6 {[%emt 0:00:23]} 6. Bh4 {[%emt 0:00:18]} O-O {[%emt 0:01:54]} 7. Nf3 {[%emt 0:01:54]} d5 {[%emt 0:04:55]} 8. cxd5 {[%emt 0:09:02]} exd5 {[%emt 0:01:25]} 9. e5 {[%emt 0:00:19]} Nbc6 {[%emt 0:03:06]} 10. h3 {[%emt 0:12:33]} g5 {[%emt 0:09:42]} 11. Bg3 {[%emt 0:00:46]} Nf5 {[%emt 0:04:11]} 12. Bh2 {[%emt 0:01:52]} f6 {[%emt 0:01:33]} 13. Be2 {[%emt 0:10:46]} fxe5 {[%emt 0:07:21]} 14. dxe5 {[%emt 0:06:10]} Be6 {[%emt 0:00:53]} 15. O-O {[%emt 0:00:52]} Qd7 {[%emt 0:06:02]} 16. Na4 {[%emt 0:13:15]} b6 {[%emt 0:06:30]} 17. Rc1 {[%emt 0:02:10]} a6 {[%emt 0:03:54]} 18. Re1 {[%emt 0:03:43]} Nfe7 {[%emt 0:05:09]} 19. Bd3 {[%emt 0:03:28]} Rf7 {[%emt 0:07:28]} 20. Nc3 {[%emt 0:10:49]} Raf8 {[%emt 0:02:21]} 21. Qe2 {[%emt 0:01:49]} Rxf3 {[%emt 0:01:35]} 22. gxf3 {[%emt 0:00:33]} Nd4 {[%emt 0:00:07]} 23. Qd1 {[%emt 0:02:07]} Nxf3+ {[%emt 0:01:04]} 24. Kh1 {[%emt 0:00:12]} Nc6 {[%emt 0:06:32]} 25. Bg3 {[%emt 0:03:55]} Nxe1 {[%emt 0:01:42]} 26. Qxe1 {[%emt 0:00:08]} Nd4 {[%emt 0:00:53]} 27. Bxa6 {[%emt 0:04:18]} Nf3 {[%emt 0:01:03]} 28. Qe2 {[%emt 0:01:17]} Qf7 {[%emt 0:04:12]} 29. Nb5 {[%emt 0:02:28]} Qh5 {[%emt 0:01:10]} 30. h4 {[%emt 0:02:10]} Qg4 {[%emt 0:00:06]} 31. Qf1 {[%emt 0:00:30]} gxh4 {[%emt 0:01:29]} 32. Bh2 {[%emt 0:00:32]} Nxh2 {[%emt 0:00:50]} 33. Kxh2 {[%emt 0:01:09]} Bxe5+ {[%emt 0:00:44]} 34. Kh1 {[%emt 0:00:06]} h3 {[%emt 0:01:12]} 35. Qg1 {[%emt 0:00:54]} Rxf2 {[%emt 0:00:41]} 36. Qxg4+ {[%emt 0:00:35]} Bxg4 {[%emt 0:00:05]} 37. Rg1 {[%emt 0:01:40]} Rh2# {[%emt 0:00:07]} 0-1

[Event "46th OKU-A 2019"]
[Site "Utrecht"]
[Date "2019.05.31"]
[Round "1.4"]
[White "Kanis, Sierk"]
[Black "Arnaudov, G. Petar"]
[Result "0-1"]
[ECO "A50"]
[WhiteElo "2017"]
[BlackElo "2482"]
[Annotator "ChessBase"]
[PlyCount "62"]
[EventDate "2019.05.31"]
[EventType "swiss"]
[EventCountry "NED"]
[SourceTitle "playchess.com"]
[Source "ChessBase"]
[SourceQuality "1"]
[TimeControl "6600+10"]

1. d4 {[%emt 0:00:00]} Nf6 {[%emt 0:00:00]} 2. c4 {[%emt 0:00:00]} Nc6 {[%emt 0:00:02]} 3. Nc3 {[%emt 0:00:57]} e5 {[%emt 0:00:06]} 4. d5 {[%emt 0:01:29]} Ne7 {[%emt 0:00:06]} 5. e4 {[%emt 0:00:19]} Ng6 {[%emt 0:00:04]} 6. Be3 {[%emt 0:03:39]} Bb4 {[%emt 0:00:13]} 7. Bd3 {[%emt 0:03:19]} Bxc3+ {[%emt 0:00:08]} 8. bxc3 {[%emt 0:00:02]} d6 {[%emt 0:00:13]} 9. h3 {[%emt 0:02:18]} O-O {[%emt 0:00:19]} 10. Ne2 {[%emt 0:06:21]} h6 {[%emt 0:02:50]} 11. c5 {[%emt 0:03:22]} Nd7 {[%emt 0:04:15]} 12. cxd6 {[%emt 0:00:43]} cxd6 {[%emt 0:00:03]} 13. g4 {[%emt 0:04:58]} Nc5 {[%emt 0:05:07]} 14. Bxc5 {[%emt 0:05:12]} dxc5 {[%emt 0:00:09]} 15. Ng3 {[%emt 0:05:32]} Qa5 {[%emt 0:01:54]} 16. Qd2 {[%emt 0:07:04]} Nf4 {[%emt 0:01:40]} 17. Ne2 {[%emt 0:11:03]} Ng2+ {[%emt 0:04:30]} 18. Kf1 {[%emt 0:00:04]} Nh4 {[%emt 0:00:10]} 19. Qb2 {[%emt 0:05:28]} g6 {[%emt 0:01:11]} 20. Rg1 {[%emt 0:01:47]} Qd8 {[%emt 0:00:41]} 21. Rg3 {[%emt 0:01:23]} Kh7 {[%emt 0:00:38]} 22. Kg1 {[%emt 0:03:24]} f5 {[%emt 0:01:05]} 23. gxf5 {[%emt 0:01:13]} gxf5 {[%emt 0:00:09]} 24. c4 {[%emt 0:05:47]} f4 {[%emt 0:01:06]} 25. Nxf4 {[%emt 0:00:32]} Rxf4 {[%emt 0:00:18]} 26. Qxe5 {[%emt 0:05:17]} Nf3+ {[%emt 0:01:07]} 27. Rxf3 {[%emt 0:00:11]} Rxf3 {[%emt 0:00:03]} 28. Qc3 {[%emt 0:01:25]} Qg5+ {[%emt 0:00:11]} 29. Kf1 {[%emt 0:00:29]} Qe3 {[%emt 0:00:42]} 30. e5+ {[%emt 0:01:53]} Qxd3+ {[%emt 0:00:05]} 31. Qxd3+ {[%emt 0:00:08]} Rxd3 {[%emt 0:00:06]} 0-1

[Event "46th OKU-A 2019"]
[Site "Utrecht"]
[Date "2019.05.31"]
[Round "1.5"]
[White "Warmerdam, Max"]
[Black "Rosmuller, Anton"]
[Result "1-0"]
[ECO "B33"]
[WhiteElo "2476"]
[BlackElo "2062"]
[Annotator "ChessBase"]
[PlyCount "51"]
[EventDate "2019.05.31"]
[EventType "swiss"]
[EventCountry "NED"]
[SourceTitle "playchess.com"]
[Source "ChessBase"]
[SourceQuality "1"]
[TimeControl "6600+10"]

1. e4 {[%emt 0:00:00]} c5 {[%emt 0:00:05]} 2. Nf3 {[%emt 0:00:00]} Nc6 {[%emt 0:00:06]} 3. d4 {[%emt 0:00:50]} cxd4 {[%emt 0:00:19]} 4. Nxd4 {[%emt 0:00:06]} Nf6 {[%emt 0:00:22]} 5. Nc3 {[%emt 0:00:05]} e5 {[%emt 0:00:07]} 6. Ndb5 {[%emt 0:00:06]} d6 {[%emt 0:00:08]} 7. Bg5 {[%emt 0:00:21]} a6 {[%emt 0:00:22]} 8. Na3 {[%emt 0:00:05]} b5 {[%emt 0:00:20]} 9. Bxf6 {[%emt 0:01:23]} gxf6 {[%emt 0:00:08]} 10. Nd5 {[%emt 0:00:04]} f5 {[%emt 0:04:35]} 11. Bd3 {[%emt 0:01:29]} Bg7 {[%emt 0:02:05]} 12. exf5 {[%emt 0:01:55]} e4 {[%emt 0:09:46]} 13. f6 {[%emt 0:02:37]} Bxf6 {[%emt 0:03:44]} 14. Nxf6+ {[%emt 0:00:54]} Qxf6 {[%emt 0:00:08]} 15. Bxe4 {[%emt 0:00:06]} Bb7 {[%emt 0:04:35]} 16. Qf3 {[%emt 0:02:58]} Qxf3 {[%emt 0:01:19]} 17. Bxf3 {[%emt 0:00:06]} O-O-O {[%emt 0:00:50]} 18. O-O-O {[%emt 0:00:29]} Ne5 {[%emt 0:01:53]} 19. Bxb7+ {[%emt 0:01:49]} Kxb7 {[%emt 0:00:08]} 20. c3 {[%emt 0:00:15]} Rhe8 {[%emt 0:06:15]} 21. Nc2 {[%emt 0:00:46]} Re7 {[%emt 0:13:13]} 22. Rd4 {[%emt 0:02:24]} Nc6 {[%emt 0:02:53]} 23. Rf4 {[%emt 0:01:35]} Rg8 {[%emt 0:03:00]} 24. Ne3 {[%emt 0:00:23]} Ne5 {[%emt 0:02:31]} 25. Rd1 {[%emt 0:00:13]} Kc6 {[%emt 0:02:56]} 26. Rh4 {[%emt 0:02:09]} 1-0

[Event "46th OKU-A 2019"]
[Site "Utrecht"]
[Date "2019.05.31"]
[Round "1.6"]
[White "Buikstra, Arjon"]
[Black "Meng, Roger"]
[Result "0-1"]
[ECO "B08"]
[WhiteElo "2075"]
[BlackElo "2443"]
[Annotator "ChessBase"]
[PlyCount "72"]
[EventDate "2019.05.31"]
[EventType "swiss"]
[EventCountry "NED"]
[SourceTitle "playchess.com"]
[Source "ChessBase"]
[SourceQuality "1"]
[TimeControl "6600+10"]

1. e4 {[%emt 0:00:00]} g6 {[%emt 0:00:05]} 2. Nf3 {[%emt 0:01:03]} Bg7 {[%emt 0:00:05]} 3. d4 {[%emt 0:00:36]} d6 {[%emt 0:00:08]} 4. Be3 {[%emt 0:01:30]} Nf6 {[%emt 0:00:43]} 5. Nc3 {[%emt 0:00:17]} O-O {[%emt 0:00:22]} 6. Bd3 {[%emt 0:00:51]} Nc6 {[%emt 0:02:04]} 7. h3 {[%emt 0:02:04]} e5 {[%emt 0:00:14]} 8. d5 {[%emt 0:03:21]} Ne7 {[%emt 0:00:07]} 9. Bc4 {[%emt 0:15:15]} c6 {[%emt 0:02:35]} 10. a4 {[%emt 0:01:35]} cxd5 {[%emt 0:00:18]} 11. exd5 {[%emt 0:00:34]} Nf5 {[%emt 0:00:46]} 12. Bc1 {[%emt 0:05:02]} e4 {[%emt 0:05:03]} 13. Nh2 {[%emt 0:06:46]} e3 {[%emt 0:02:35]} 14. fxe3 {[%emt 0:12:04]} Ng3 {[%emt 0:05:42]} 15. Rg1 {[%emt 0:01:38]} Re8 {[%emt 0:00:12]} 16. Ne2 {[%emt 0:12:26]} Nfe4 {[%emt 0:02:00]} 17. Nf3 {[%emt 0:00:55]} Nf5 {[%emt 0:06:39]} 18. Bd3 {[%emt 0:09:18]} Qa5+ {[%emt 0:02:38]} 19. c3 {[%emt 0:02:08]} Qxd5 {[%emt 0:01:01]} 20. Nf4 {[%emt 0:00:49]} Qc5 {[%emt 0:00:18]} 21. Bxe4 {[%emt 0:02:18]} Rxe4 {[%emt 0:00:39]} 22. Qd5 {[%emt 0:00:16]} Qxd5 {[%emt 0:03:35]} 23. Nxd5 {[%emt 0:00:06]} Bd7 {[%emt 0:00:32]} 24. Kf2 {[%emt 0:01:45]} Rxa4 {[%emt 0:03:42]} 25. Rxa4 {[%emt 0:01:46]} Bxa4 {[%emt 0:00:01]} 26. g4 {[%emt 0:01:08]} Bb3 {[%emt 0:07:22]} 27. Nc7 {[%emt 0:00:43]} Rc8 {[%emt 0:00:20]} 28. Nb5 {[%emt 0:00:07]} a6 {[%emt 0:00:21]} 29. gxf5 {[%emt 0:06:43]} axb5 {[%emt 0:00:13]} 30. Nd4 {[%emt 0:00:22]} Bc4 {[%emt 0:00:13]} 31. e4 {[%emt 0:01:07]} b4 {[%emt 0:00:34]} 32. Ke3 {[%emt 0:00:46]} bxc3 {[%emt 0:01:21]} 33. bxc3 {[%emt 0:00:38]} Re8 {[%emt 0:01:26]} 34. Kf3 {[%emt 0:00:26]} Bd3 {[%emt 0:00:50]} 35. Re1 {[%emt 0:01:11]} d5 {[%emt 0:00:11]} 36. e5 {[%emt 0:00:54]} Be4+ {[%emt 0:00:31]} 0-1

[Event "46th OKU-A 2019"]
[Site "Utrecht"]
[Date "2019.05.31"]
[Round "1.8"]
[White "Van der Leij, Arjan"]
[Black "Lalic, Bogdan"]
[Result "0-1"]
[ECO "B20"]
[WhiteElo "2039"]
[BlackElo "2400"]
[Annotator "ChessBase"]
[PlyCount "46"]
[EventDate "2019.05.31"]
[EventType "swiss"]
[EventCountry "NED"]
[SourceTitle "playchess.com"]
[Source "ChessBase"]
[SourceQuality "1"]
[TimeControl "6600+10"]

1. e4 {[%emt 0:00:00]} c5 {[%emt 0:00:00]} 2. b4 {[%emt 0:00:05]} e5 {[%emt 0:01:11]} 3. Nf3 {[%emt 0:01:55]} Nc6 {[%emt 0:00:24]} 4. b5 {[%emt 0:05:05]} Nd4 {[%emt 0:00:05]} 5. Bc4 {[%emt 0:01:27]} Nxf3+ {[%emt 0:00:52]} 6. Qxf3 {[%emt 0:00:10]} Nf6 {[%emt 0:00:21]} 7. O-O {[%emt 0:02:42]} Be7 {[%emt 0:00:57]} 8. d3 {[%emt 0:00:25]} O-O {[%emt 0:00:12]} 9. Nc3 {[%emt 0:01:31]} d6 {[%emt 0:00:07]} 10. Bg5 {[%emt 0:03:07]} Be6 {[%emt 0:00:16]} 11. Bxe6 {[%emt 0:02:22]} fxe6 {[%emt 0:00:08]} 12. Qh3 {[%emt 0:00:17]} Qc8 {[%emt 0:03:18]} 13. Ne2 {[%emt 0:03:25]} c4 {[%emt 0:02:33]} 14. d4 {[%emt 0:07:14]} Rf7 {[%emt 0:00:15]} 15. dxe5 {[%emt 0:01:58]} dxe5 {[%emt 0:00:05]} 16. Bxf6 {[%emt 0:16:26]} Rxf6 {[%emt 0:00:42]} 17. f4 {[%emt 0:09:31]} Qc5+ {[%emt 0:01:51]} 18. Kh1 {[%emt 0:00:09]} exf4 {[%emt 0:03:43]} 19. Rxf4 {[%emt 0:11:25]} Rh6 {[%emt 0:00:52]} 20. Qf3 {[%emt 0:01:53]} Bd6 {[%emt 0:00:43]} 21. Qf2 {[%emt 0:00:22]} Rxh2+ {[%emt 0:00:36]} 22. Kg1 {[%emt 0:00:21]} Rh5 {[%emt 0:01:16]} 23. Ng3 {[%emt 0:08:41]} Bxf4 {[%emt 0:00:16]} 0-1

[Event "46th OKU-A 2019"]
[Site "Utrecht"]
[Date "2019.05.31"]
[Round "1.11"]
[White "Haast, Mark"]
[Black "De Groot, Pieter"]
[Result "1-0"]
[ECO "A14"]
[WhiteElo "2391"]
[BlackElo "1977"]
[Annotator "ChessBase"]
[PlyCount "51"]
[EventDate "2019.05.31"]
[EventType "swiss"]
[EventCountry "NED"]
[SourceTitle "playchess.com"]
[Source "ChessBase"]
[SourceQuality "1"]
[TimeControl "6600+10"]

1. c4 {[%emt 0:00:00]} Nf6 {[%emt 0:00:03]} 2. g3 {[%emt 0:00:09]} e6 {[%emt 0:01:01]} 3. Bg2 {[%emt 0:00:10]} d5 {[%emt 0:00:19]} 4. Nf3 {[%emt 0:00:09]} Be7 {[%emt 0:00:24]} 5. O-O {[%emt 0:00:09]} O-O {[%emt 0:00:13]} 6. b3 {[%emt 0:01:21]} c5 {[%emt 0:01:43]} 7. Bb2 {[%emt 0:00:34]} Nc6 {[%emt 0:00:18]} 8. e3 {[%emt 0:01:04]} Qb6 {[%emt 0:01:56]} 9. d3 {[%emt 0:08:42]} Rd8 {[%emt 0:01:10]} 10. Qe2 {[%emt 0:00:37]} Bd7 {[%emt 0:01:50]} 11. Nc3 {[%emt 0:03:02]} Be8 {[%emt 0:02:11]} 12. Rac1 {[%emt 0:04:49]} Rac8 {[%emt 0:00:28]} 13. Na4 {[%emt 0:06:51]} Qa6 {[%emt 0:02:49]} 14. Bxf6 {[%emt 0:02:16]} gxf6 {[%emt 0:00:09]} 15. cxd5 {[%emt 0:00:14]} Rxd5 {[%emt 0:00:21]} 16. Ne1 {[%emt 0:00:41]} Rdd8 {[%emt 0:09:37]} 17. Rxc5 {[%emt 0:02:09]} Bxc5 {[%emt 0:00:33]} 18. Nxc5 {[%emt 0:00:10]} Qb6 {[%emt 0:01:19]} 19. Qg4+ {[%emt 0:03:08]} Kf8 {[%emt 0:00:32]} 20. d4 {[%emt 0:00:32]} Ke7 {[%emt 0:04:03]} 21. Qh4 {[%emt 0:17:03]} e5 {[%emt 0:05:57]} 22. Ne4 {[%emt 0:01:15]} exd4 {[%emt 0:04:24]} 23. Nxf6 {[%emt 0:01:53]} Kf8 {[%emt 0:00:59]} 24. Bh3 {[%emt 0:05:41]} dxe3 {[%emt 0:06:19]} 25. Qh6+ {[%emt 0:01:08]} Ke7 {[%emt 0:00:09]} 26. Ng8# {[%emt 0:00:24]} 1-0

[Event "46th OKU-A 2019"]
[Site "Utrecht"]
[Date "2019.06.01"]
[Round "2.1"]
[White "Ten Hertog, Hugo"]
[Black "Kokje, Joris"]
[Result "1-0"]
[ECO "A00"]
[WhiteElo "2480"]
[BlackElo "2257"]
[Annotator "ChessBase"]
[PlyCount "45"]
[EventDate "2019.05.31"]
[EventType "swiss"]
[EventCountry "NED"]
[SourceTitle "playchess.com"]
[Source "ChessBase"]
[SourceQuality "1"]
[TimeControl "6600+10"]

1. g3 {[%emt 0:00:19]} d5 {[%emt 0:01:10]} 2. Bg2 {[%emt 0:00:08]} e5 {[%emt 0:00:15]} 3. d3 {[%emt 0:00:22]} c5 {[%emt 0:00:10]} 4. e4 {[%emt 0:03:57]} d4 {[%emt 0:03:29]} 5. f4 {[%emt 0:03:13]} Nc6 {[%emt 0:01:12]} 6. Nf3 {[%emt 0:01:08]} Bd6 {[%emt 0:02:36]} 7. Na3 {[%emt 0:03:40]} Nge7 {[%emt 0:05:29]} 8. O-O {[%emt 0:06:17]} f6 {[%emt 0:05:32]} 9. Nc4 {[%emt 0:10:46]} O-O {[%emt 0:07:47]} 10. a4 {[%emt 0:04:05]} a6 {[%emt 0:02:59]} 11. f5 {[%emt 0:03:19]} Rb8 {[%emt 0:03:52]} 12. a5 {[%emt 0:03:56]} Bc7 {[%emt 0:03:05]} 13. Bd2 {[%emt 0:07:08]} Nb4 {[%emt 0:03:48]} 14. g4 {[%emt 0:04:57]} Nec6 {[%emt 0:03:17]} 15. g5 {[%emt 0:04:39]} Nxa5 {[%emt 0:08:22]} 16. gxf6 {[%emt 0:05:02]} gxf6 {[%emt 0:00:32]} 17. Rxa5 {[%emt 0:13:55]} Bxa5 {[%emt 0:04:31]} 18. Bh6 {[%emt 0:00:05]} Rf7 {[%emt 0:03:54]} 19. Nfxe5 {[%emt 0:05:20]} fxe5 {[%emt 0:02:56]} 20. Rf3 {[%emt 0:00:08]} Bxf5 {[%emt 0:17:46]} 21. Rxf5 {[%emt 0:03:02]} Rxf5 {[%emt 0:01:28]} 22. Qg4+ {[%emt 0:01:10]} Kh8 {[%emt 0:01:05]} 23. Qg7# {[%emt 0:00:06]} 1-0

[Event "46th OKU-A 2019"]
[Site "Utrecht"]
[Date "2019.06.01"]
[Round "2.2"]
[White "Halfhide, Sebastian"]
[Black "Beerdsen, Thomas"]
[Result "1/2-1/2"]
[ECO "B40"]
[WhiteElo "2252"]
[BlackElo "2488"]
[Annotator "ChessBase"]
[PlyCount "104"]
[EventDate "2019.05.31"]
[EventType "swiss"]
[EventCountry "NED"]
[SourceTitle "playchess.com"]
[Source "ChessBase"]
[SourceQuality "1"]
[TimeControl "6600+10"]

1. e4 {[%emt 0:00:07]} c5 {[%emt 0:00:23]} 2. Nf3 {[%emt 0:00:07]} e6 {[%emt 0:00:06]} 3. g3 {[%emt 0:01:46]} d5 {[%emt 0:02:23]} 4. exd5 {[%emt 0:01:30]} exd5 {[%emt 0:00:13]} 5. Bg2 {[%emt 0:01:42]} Qe7+ {[%emt 0:06:49]} 6. Qe2 {[%emt 0:00:07]} Nc6 {[%emt 0:00:54]} 7. Qxe7+ {[%emt 0:01:37]} Ngxe7 {[%emt 0:03:02]} 8. O-O {[%emt 0:05:12]} g6 {[%emt 0:11:00]} 9. d3 {[%emt 0:10:02]} Bg7 {[%emt 0:03:24]} 10. Nc3 {[%emt 0:00:43]} Be6 {[%emt 0:03:54]} 11. Bf4 {[%emt 0:10:45]} h6 {[%emt 0:04:50]} 12. Nb5 {[%emt 0:09:09]} Kd7 {[%emt 0:01:53]} 13. Nc7 {[%emt 0:06:10]} g5 {[%emt 0:01:05]} 14. Nxe6 {[%emt 0:00:17]} fxe6 {[%emt 0:00:05]} 15. Be3 {[%emt 0:06:40]} b6 {[%emt 0:03:02]} 16. c3 {[%emt 0:00:21]} Nf5 {[%emt 0:04:40]} 17. Ne1 {[%emt 0:17:56]} Nxe3 {[%emt 0:06:42]} 18. fxe3 {[%emt 0:00:09]} Rhf8 {[%emt 0:02:10]} 19. Nc2 {[%emt 0:12:57]} b5 {[%emt 0:02:44]} 20. d4 {[%emt 0:03:13]} b4 {[%emt 0:02:03]} 21. cxb4 {[%emt 0:01:18]} cxd4 {[%emt 0:15:27]} 22. b5 {[%emt 0:02:51]} Ne7 {[%emt 0:00:16]} 23. Nxd4 {[%emt 0:02:13]} Bxd4 {[%emt 0:00:39]} 24. exd4 {[%emt 0:00:04]} Nf5 {[%emt 0:06:54]} 25. Rad1 {[%emt 0:03:31]} Ne3 {[%emt 0:06:31]} 26. Rxf8 {[%emt 0:00:17]} Rxf8 {[%emt 0:00:03]} 27. Rd3 {[%emt 0:02:21]} Nc4 {[%emt 0:03:28]} 28. b3 {[%emt 0:03:25]} Na3 {[%emt 0:00:37]} 29. Bf3 {[%emt 0:03:37]} Nxb5 {[%emt 0:02:05]} 30. Bg4 {[%emt 0:00:54]} Rc8 {[%emt 0:01:16]} 31. Rd2 {[%emt 0:00:01]} Rc1+ {[%emt 0:01:38]} 32. Kg2 {[%emt 0:00:01]} Kd6 {[%emt 0:00:38]} 33. h4 {[%emt 0:00:35]} Nc3 {[%emt 0:01:10]} 34. Bf3 {[%emt 0:01:28]} Ra1 {[%emt 0:00:41]} 35. hxg5 {[%emt 0:00:40]} hxg5 {[%emt 0:00:04]} 36. Kh3 {[%emt 0:00:13]} Rxa2 {[%emt 0:00:39]} 37. Rxa2 {[%emt 0:01:06]} Nxa2 {[%emt 0:00:05]} 38. Kg4 {[%emt 0:00:04]} Nb4 {[%emt 0:00:49]} 39. Kxg5 {[%emt 0:00:05]} Nc6 {[%emt 0:00:05]} 40. Kf6 {[%emt 0:00:19]} Nxd4 {[%emt 0:00:05]} 41. Bd1 {[%emt 0:00:03]} Nf5 {[%emt 0:08:04]} 42. g4 {[%emt 0:00:03]} Ne7 {[%emt 0:00:21]} 43. g5 {[%emt 0:00:20]} d4 {[%emt 0:01:04]} 44. g6 {[%emt 0:00:48]} Nxg6 {[%emt 0:00:31]} 45. Kxg6 {[%emt 0:00:03]} Ke5 {[%emt 0:00:08]} 46. Kf7 {[%emt 0:00:33]} d3 {[%emt 0:00:48]} 47. Ke7 {[%emt 0:00:06]} d2 {[%emt 0:01:09]} 48. Kd7 {[%emt 0:00:05]} a5 {[%emt 0:00:51]} 49. Ke7 {[%emt 0:00:02]} Kd5 {[%emt 0:00:13]} 50. Bf3+ {[%emt 0:00:01]} Ke5 {[%emt 0:00:07]} 51. Bd1 {[%emt 0:00:03]} Kd5 {[%emt 0:00:14]} 52. Bf3+ {[%emt 0:00:01]} Ke5 {[%emt 0:00:35]} 1/2-1/2

[Event "46th OKU-A 2019"]
[Site "Utrecht"]
[Date "2019.06.01"]
[Round "2.3"]
[White "Arnaudov, G. Petar"]
[Black "Elgersma, Onno"]
[Result "1-0"]
[ECO "B12"]
[WhiteElo "2482"]
[BlackElo "2166"]
[Annotator "ChessBase"]
[PlyCount "99"]
[EventDate "2019.05.31"]
[EventType "swiss"]
[EventCountry "NED"]
[SourceTitle "playchess.com"]
[Source "ChessBase"]
[SourceQuality "1"]
[TimeControl "6600+10"]

1. e4 {[%emt 0:05:28]} c6 {[%emt 0:00:08]} 2. d4 {[%emt 0:00:06]} d5 {[%emt 0:00:06]} 3. e5 {[%emt 0:00:05]} Bf5 {[%emt 0:00:40]} 4. h4 {[%emt 0:00:04]} h5 {[%emt 0:02:56]} 5. Bg5 {[%emt 0:00:07]} Qb6 {[%emt 0:04:59]} 6. Bd3 {[%emt 0:00:05]} Bxd3 {[%emt 0:03:17]} 7. Qxd3 {[%emt 0:00:14]} e6 {[%emt 0:02:06]} 8. Nd2 {[%emt 0:00:06]} Qa6 {[%emt 0:02:39]} 9. c4 {[%emt 0:00:07]} Nd7 {[%emt 0:03:01]} 10. Ngf3 {[%emt 0:01:39]} Nh6 {[%emt 0:12:17]} 11. O-O {[%emt 0:01:00]} Nf5 {[%emt 0:00:31]} 12. Qc3 {[%emt 0:00:15]} dxc4 {[%emt 0:04:07]} 13. Nxc4 {[%emt 0:00:48]} Nb6 {[%emt 0:01:06]} 14. Ne3 {[%emt 0:00:42]} Ne7 {[%emt 0:11:46]} 15. Nd2 {[%emt 0:01:10]} Ned5 {[%emt 0:02:37]} 16. Qb3 {[%emt 0:00:42]} Qa4 {[%emt 0:12:58]} 17. Qd3 {[%emt 0:00:57]} Rc8 {[%emt 0:00:18]} 18. Ne4 {[%emt 0:02:42]} Qb5 {[%emt 0:07:00]} 19. Qc2 {[%emt 0:04:11]} Nb4 {[%emt 0:01:41]} 20. Qd1 {[%emt 0:01:14]} a5 {[%emt 0:06:22]} 21. a3 {[%emt 0:01:29]} N4d5 {[%emt 0:01:03]} 22. Nc3 {[%emt 0:00:43]} Qa6 {[%emt 0:04:24]} 23. Ncxd5 {[%emt 0:01:07]} cxd5 {[%emt 0:03:51]} 24. Rc1 {[%emt 0:00:19]} Rc6 {[%emt 0:07:09]} 25. Rxc6 {[%emt 0:01:50]} bxc6 {[%emt 0:00:18]} 26. Qc2 {[%emt 0:00:16]} Nd7 {[%emt 0:01:29]} 27. Rc1 {[%emt 0:00:42]} Be7 {[%emt 0:05:10]} 28. Qxc6 {[%emt 0:00:54]} Qxc6 {[%emt 0:00:14]} 29. Rxc6 {[%emt 0:00:06]} Bxg5 {[%emt 0:00:24]} 30. hxg5 {[%emt 0:00:04]} Ke7 {[%emt 0:00:23]} 31. b3 {[%emt 0:01:25]} Rb8 {[%emt 0:00:58]} 32. Rc3 {[%emt 0:00:04]} f6 {[%emt 0:02:36]} 33. gxf6+ {[%emt 0:00:57]} gxf6 {[%emt 0:00:05]} 34. f4 {[%emt 0:00:07]} fxe5 {[%emt 0:00:21]} 35. fxe5 {[%emt 0:00:08]} Rb7 {[%emt 0:03:10]} 36. Nf1 {[%emt 0:00:42]} Kf7 {[%emt 0:01:47]} 37. Nd2 {[%emt 0:01:29]} Kg6 {[%emt 0:01:10]} 38. Kf2 {[%emt 0:00:28]} Kf5 {[%emt 0:00:33]} 39. Rf3+ {[%emt 0:01:01]} Kg6 {[%emt 0:00:16]} 40. Rg3+ {[%emt 0:00:07]} Kh6 {[%emt 0:00:19]} 41. Rc3 {[%emt 0:00:21]} Nf8 {[%emt 0:00:18]} 42. Rf3 {[%emt 0:01:31]} Kg7 {[%emt 0:00:14]} 43. Ke2 {[%emt 0:00:22]} Rc7 {[%emt 0:00:08]} 44. Kd3 {[%emt 0:00:08]} Rc1 {[%emt 0:00:08]} 45. Rf1 {[%emt 0:00:07]} Rc7 {[%emt 0:00:09]} 46. Nf3 {[%emt 0:02:17]} Nh7 {[%emt 0:00:07]} 47. b4 {[%emt 0:00:26]} axb4 {[%emt 0:00:02]} 48. axb4 {[%emt 0:00:04]} Rb7 {[%emt 0:00:10]} 49. Kc3 {[%emt 0:00:37]} Kg6 {[%emt 0:00:15]} 50. Kb3 {[%emt 0:00:11]} 1-0

[Event "46th OKU-A 2019"]
[Site "Utrecht"]
[Date "2019.06.01"]
[Round "2.4"]
[White "Lecomte, Robin"]
[Black "Warmerdam, Max"]
[Result "0-1"]
[ECO "A06"]
[WhiteElo "2224"]
[BlackElo "2476"]
[Annotator "ChessBase"]
[PlyCount "48"]
[EventDate "2019.05.31"]
[EventType "swiss"]
[EventCountry "NED"]
[SourceTitle "playchess.com"]
[Source "ChessBase"]
[SourceQuality "1"]
[TimeControl "6600+10"]

1. Nf3 {[%emt 0:00:00]} d5 {[%emt 0:00:10]} 2. b3 {[%emt 0:00:23]} Bg4 {[%emt 0:00:57]} 3. Bb2 {[%emt 0:00:32]} Bxf3 {[%emt 0:01:09]} 4. exf3 {[%emt 0:03:40]} e6 {[%emt 0:03:11]} 5. c4 {[%emt 0:03:05]} dxc4 {[%emt 0:01:41]} 6. bxc4 {[%emt 0:00:12]} c5 {[%emt 0:00:51]} 7. Qb3 {[%emt 0:04:58]} Qd7 {[%emt 0:02:50]} 8. g3 {[%emt 0:03:44]} Nc6 {[%emt 0:01:59]} 9. Bg2 {[%emt 0:00:17]} Nge7 {[%emt 0:02:34]} 10. O-O {[%emt 0:02:23]} Nf5 {[%emt 0:01:24]} 11. f4 {[%emt 0:19:24]} Be7 {[%emt 0:03:03]} 12. Na3 {[%emt 0:03:55]} O-O {[%emt 0:01:54]} 13. Rad1 {[%emt 0:00:55]} Rfd8 {[%emt 0:18:48]} 14. Nc2 {[%emt 0:00:22]} Rac8 {[%emt 0:00:18]} 15. Rfe1 {[%emt 0:00:34]} b6 {[%emt 0:00:32]} 16. Bc3 {[%emt 0:06:26]} Bf6 {[%emt 0:09:33]} 17. Bxf6 {[%emt 0:17:54]} gxf6 {[%emt 0:00:21]} 18. d3 {[%emt 0:02:51]} Ncd4 {[%emt 0:00:44]} 19. Qb2 {[%emt 0:04:44]} Nxc2 {[%emt 0:00:15]} 20. Qxc2 {[%emt 0:00:03]} Nd4 {[%emt 0:00:08]} 21. Qc3 {[%emt 0:00:05]} f5 {[%emt 0:02:55]} 22. Rd2 {[%emt 0:00:57]} Qa4 {[%emt 0:03:52]} 23. h4 {[%emt 0:01:35]} Rd6 {[%emt 0:00:25]} 24. Red1 {[%emt 0:01:42]} Qxd1+ {[%emt 0:00:11]} 0-1